fUSD/lending_fUSD_20251201
["ID","MTS","AMOUNT","RATE_DAILY","PERIOD"]
[395236886,1764559855954,-500.0,0.00016995,2]
[395236887,1764559855964,-500.0,0.00016995,2]
[395236888,1764559855973,-500.0,0.00016995,2]
[395236889,1764559855983,-500.0,0.00016995,2]
[395236890,1764559855992,-500.0,0.00016995,2]
[395236891,1764559856002,-434.2840336,0.00016995,2]
[395236892,1764559856011,-500.0,0.00016995,2]
[395236893,1764559856020,-500.0,0.00016995,2]
[395236894,1764559856030,-500.0,0.00016995,2]
[395236895,1764559856039,-500.0,0.00016995,2]
[395236896,1764559856048,-500.0,0.00016995,2]
[395236897,1764559856058,-500.0,0.00016995,2]
[395236898,1764559856067,-500.0,0.00016995,2]
[395236899,1764559856076,-305540.3819781,0.00016996,2]
[395236900,1764559856086,-8818.3760661,0.00016996,2]
[395236901,1764559856095,-3416.5477567,0.00016996,2]
[395236902,1764559856104,-886.3497583,0.00016996,2]
[395236903,1764559856114,-153.947973,0.00016996,2]
[395236904,1764559856123,-151.0,0.00016996,2]
[395236905,1764559856132,-151.0,0.00016996,2]
[395236906,1764559856142,-248.923275,0.00016996,2]
[395236907,1764559856151,-248.923275,0.00016996,2]
[395236908,1764559856161,-151.0,0.00016996,2]
[395236909,1764559856170,-151.0,0.00016996,2]
[395236910,1764559856179,-248.923275,0.00016996,2]
[395236911,1764559856188,-151.0,0.00016996,2]
[395236912,1764559856197,-248.923275,0.00016996,2]
[395236913,1764559856207,-151.0,0.00016996,2]
[395236914,1764559856216,-180.616917,0.00016996,2]
[395236915,1764559856225,-151.0,0.00016996,2]
[395236916,1764559856234,-180.616917,0.00016996,2]
[395236917,1764559856244,-151.0,0.00016996,2]
[395236918,1764559856253,-151.0,0.00016996,2]
[395236919,1764559856262,-180.616917,0.00016996,2]
[395236920,1764559856271,-151.0,0.00016996,2]
[395236921,1764559856285,-151.0,0.00016996,2]
[395236922,1764559856294,-151.0,0.00016996,2]
[395236923,1764559856304,-180.616917,0.00016996,2]
[395236924,1764559856315,-151.0,0.00016996,2]
[395236925,1764559856326,-151.0,0.00016996,2]
[395236926,1764559856335,-151.0,0.00016996,2]
[395236927,1764559856344,-387.628526,0.00016996,2]
[395236928,1764559856354,-282.230873,0.00016996,2]
[395236929,1764559856363,-156.051936,0.00016996,2]
[395236930,1764559856373,-151.0,0.00016996,2]
[395236931,1764559856382,-387.628526,0.00016996,2]
[395236932,1764559856392,-151.0,0.00016996,2]
[395236933,1764559856401,-387.628526,0.00016996,2]
[395236934,1764559856412,-151.0,0.00016996,2]
[395236935,1764559856422,-387.628526,0.00016996,2]
[395236936,1764559856431,-151.0,0.00016996,2]
[395236937,1764559856440,-151.0,0.00016996,2]
[395236938,1764559856450,-189.67042,0.00016996,2]
[395236939,1764559856459,-151.0,0.00016996,2]
[395236940,1764559856469,-151.0,0.00016996,2]
[395236941,1764559856478,-151.0,0.00016996,2]
[395236942,1764559856487,-151.0,0.00016996,2]
[395236943,1764559856497,-151.0,0.00016996,2]
[395236944,1764559856506,-151.0,0.00016996,2]
[395236945,1764559856515,-254.469934,0.00016996,2]
[395236946,1764559856525,-151.0,0.00016996,2]
[395236947,1764559856535,-254.469934,0.00016996,2]
[395236948,1764559856544,-151.0,0.00016996,2]
[395236949,1764559856553,-254.469934,0.00016996,2]
[395236950,1764559856563,-254.469934,0.00016996,2]
[395236951,1764559856572,-151.0,0.00016996,2]
[395236952,1764559856582,-151.0,0.00016996,2]
[395236953,1764559856592,-151.0,0.00016997,2]
[395236954,1764559856601,-500.0,0.00016999,2]
[395236955,1764559856611,-190.11352701,0.00016999,2]
[395236956,1764559856620,-500.0,0.00016999,2]
[395236957,1764559856630,-500.0,0.00016999,2]
[395236958,1764559856640,-500.0,0.00016999,2]
[395236959,1764559856650,-500.0,0.00016999,2]
[395236960,1764559856659,-500.0,0.00016999,2]
[395236961,1764559856668,-500.0,0.00016999,2]
[395236962,1764559856677,-500.0,0.00016999,2]
[395236963,1764559856686,-500.0,0.00016999,2]
[395236964,1764559856696,-500.0,0.00016999,2]
[395236965,1764559856706,-500.0,0.00016999,2]
[395236966,1764559856715,-510.9486006,0.00016999,2]
[395236967,1764559856724,-500.0,0.00016999,2]
[395236968,1764559856734,-500.0,0.00016999,2]
[395236969,1764559856743,-500.0,0.00016999,2]
[395236970,1764559856752,-500.0,0.00016999,2]
[395236971,1764559856761,-500.0,0.00016999,2]
[395236972,1764559856771,-500.0,0.00016999,2]
[395236973,1764559856781,-500.0,0.00016999,2]
[395236974,1764559856791,-500.0,0.00016999,2]
[395236975,1764559856801,-500.0,0.00016999,2]
[395236976,1764559856811,-500.0,0.00016999,2]
[395236977,1764559856820,-500.0,0.00016999,2]
[395236978,1764559856829,-500.0,0.00016999,2]
[395236979,1764559856839,-500.0,0.00016999,2]
[395236980,1764559856848,-500.0,0.00016999,2]
[395236981,1764559856858,-500.0,0.00016999,2]
[395236982,1764559856867,-500.0,0.00016999,2]
[395236983,1764559856877,-500.0,0.00016999,2]
[395236984,1764559856887,-500.0,0.00016999,2]
[395236985,1764559856897,-500.0,0.00016999,2]
[395236986,1764559856906,-507.32385656,0.00016999,2]
[395236987,1764559856916,-500.0,0.00016999,2]
[395236988,1764559856926,-500.0,0.00016999,2]
[395236989,1764559856935,-509.8652975,0.00016999,2]
[395236990,1764559856945,-500.0,0.00016999,2]
[395236991,1764559856954,-545.80682701,0.00016999,2]
[395236992,1764559856963,-500.0,0.00016999,2]
[395236993,1764559856973,-500.0,0.00016999,2]
[395236994,1764559856982,-524.15106489,0.00016999,2]
[395236995,1764559856991,-500.0,0.00016999,2]
[395236996,1764559857000,-500.0,0.00016999,2]
[395236997,1764559857009,-500.0,0.00016999,2]
[395236998,1764559857019,-500.0,0.00016999,2]
[395236999,1764559857028,-500.0,0.00016999,2]
[395237000,1764559857039,-207.74536236,0.00016999,2]
[395237001,1764559857048,-500.0,0.00016999,2]
[395237002,1764559857057,-500.0,0.00016999,2]
[395237003,1764559857067,-500.0,0.00016999,2]
[395237004,1764559857076,-500.0,0.00016999,2]
[395237005,1764559857086,-500.0,0.00016999,2]
[395237006,1764559857095,-482.63374745,0.00016999,2]
[395237007,1764559857105,-500.0,0.00016999,2]
[395237008,1764559857114,-530.10808563,0.00016999,2]
[395237009,1764559857123,-500.0,0.00016999,2]
[395237010,1764559857132,-639.66251844,0.00016999,2]
[395237011,1764559857142,-307.29501972,0.00016999,2]
[395237012,1764559857151,-500.0,0.00016999,2]
[395237013,1764559857160,-500.0,0.00016999,2]
[395237014,1764559857170,-500.0,0.00016999,2]
[395237015,1764559857181,-500.0,0.00016999,2]
[395237016,1764559857191,-500.0,0.00016999,2]
[395237017,1764559857201,-500.0,0.00016999,2]
[395237018,1764559857211,-500.0,0.00016999,2]
[395237019,1764559857220,-540.26417137,0.00016999,2]
[395237020,1764559857230,-500.0,0.00016999,2]
[395237021,1764559857239,-500.0,0.00016999,2]
[395237022,1764559857248,-500.0,0.00016999,2]
[395237023,1764559857258,-500.0,0.00016999,2]
[395237024,1764559857268,-508.34597355,0.00016999,2]
[395237025,1764559857282,-300.0,0.00016999,2]
[395237026,1764559857291,-500.0,0.00016999,2]
[395237027,1764559857301,-500.0,0.00016999,2]
[395237028,1764559857310,-500.0,0.00016999,2]
[395237029,1764559857321,-500.0,0.00016999,2]
[395237030,1764559857331,-500.0,0.00016999,2]
[395237031,1764559857341,-500.0,0.00016999,2]
[395237032,1764559857351,-500.0,0.00016999,2]
[395237033,1764559857360,-500.0,0.00016999,2]
[395237034,1764559857370,-400.14865854,0.00016999,2]
[395237035,1764559857380,-500.0,0.00016999,2]
[395237036,1764559857388,-500.0,0.00016999,2]
[395237037,1764559857398,-500.0,0.00016999,2]
[395237038,1764559857408,-500.0,0.00016999,2]
[395237039,1764559857418,-500.0,0.00016999,2]
[395237040,1764559857427,-500.0,0.00016999,2]
[395237041,1764559857436,-500.0,0.00016999,2]
[395237042,1764559857446,-500.0,0.00016999,2]
[395237043,1764559857455,-500.0,0.00016999,2]
[395237044,1764559857464,-500.0,0.00016999,2]
[395237045,1764559857473,-500.0,0.00016999,2]
[395237046,1764559857483,-300.0,0.00016999,2]
[395237047,1764559857492,-1258.0,0.00017,2]
[395237048,1764559857501,-640.0,0.00017,2]
[395237049,1764559857511,-1217.12,0.00017,2]
[395237050,1764559857521,-920.629,0.00017,2]
[395237051,1764559857532,-610.0,0.00017,2]
[395237052,1764559857541,-3442.0,0.00017,2]
[395237053,1764559857550,-2718.0,0.00017,2]
[395237054,1764559857560,-3813283.49052188,0.00017,2]
[395237055,1764559858560,-45940.19260473,0.00017,2]
[395237056,1764559858574,-400.0,0.00017,2]
[395237057,1764559858589,-146017.49184474,0.00017,2]
[395237058,1764559858616,-218.59,0.00015576,2]
[395237059,1764559858628,-56.69116721,0.00017,2]
[395237060,1764559858679,-188.88937,0.00016996,2]
[395237061,1764559858692,-1622.05458432,0.00017,2]
[395237062,1764559858713,-1932.62876397,0.00017,2]
[395237063,1764559858727,-357.28615974,0.00017,2]
[395237064,1764559858741,-10909.99473782,0.00017,2]
[395237065,1764559858770,-252.0,0.00017,2]
[395237066,1764559858780,-1281.00000001,0.00017,2]
[395237067,1764559858894,-469.06607036,0.00017,2]
[395237068,1764559858908,-417.46090557,0.00017,2]
[395237069,1764559858927,-2956.28379206,0.00017,2]
[395237070,1764559859217,-166.66,0.00012455,2]
[395237071,1764559859227,-177.52877271,0.00012544,2]
[395237072,1764559859242,-822.47122729,0.00012544,2]
[395237073,1764559859253,-166.66,0.00012866,2]
[395237074,1764559859265,-166.66,0.00013278,2]
[395237075,1764559859278,-166.66,0.00013689,2]
[395237076,1764559859291,-166.66,0.000141,2]
[395237077,1764559859302,-166.66,0.00014511,2]
[395237078,1764559859313,-151.0,0.00016996,2]
[395237079,1764559859324,-192.674558,0.00016996,2]
[395237080,1764559859335,-25787.64838086,0.00017,2]
[395237081,1764559859348,-500.0,0.00017,2]
[395237082,1764559859370,-808.13842488,0.00017,2]
[395237083,1764559859989,391.59,0.00011705,2]
[395237084,1764560139176,-250.0,0.00012454,2]
[395237085,1764560139198,-250.0,0.00012512,2]
[395237086,1764560139221,-160.26046524,0.00012543,2]
[395237087,1764560139242,-1200.0,0.00012543,2]
[395237088,1764560139263,-300.0,0.00012543,2]
[395237089,1764560139285,-300.0,0.00012543,2]
[395237090,1764560139308,-300.0,0.00012543,2]
[395237091,1764560139329,-1200.0,0.00012543,2]
[395237092,1764560139352,-26039.73953476,0.00012544,2]
[395237093,1764560721298,225.52,9.975e-05,2]
[395237094,1764560799103,-370.1157834,0.00012541,2]
[395237095,1764560846953,1193.07,0.00024658,120]
[395237096,1764560847947,795.39,0.00024658,120]
[395237097,1764561031512,-173.7989835,0.00012442,2]
[395237098,1764561031523,-1200.0,0.0001254,2]
[395237099,1764561031534,-300.0,0.0001254,2]
[395237100,1764561031545,-987.0,0.00012541,2]
[395237101,1764561031555,-150.0,0.00012541,2]
[395237102,1764561031565,-500.0,0.00012542,2]
[395237103,1764561031576,-500.0,0.00012542,2]
[395237104,1764561031587,-230.35149399,0.00012542,2]
[395237105,1764561031605,-269.64850601,0.00012542,2]
[395237106,1764561031616,-500.0,0.00012542,2]
[395237107,1764561031627,-500.0,0.00012542,2]
[395237108,1764561031637,-500.0,0.00012542,2]
[395237109,1764561031648,-500.0,0.00012542,2]
[395237110,1764561031659,-292.29533124,0.00012542,2]
[395237111,1764561031675,-207.70466876,0.00012542,2]
[395237112,1764561031686,-500.0,0.00012542,2]
[395237113,1764561031696,-500.0,0.00012542,2]
[395237114,1764561031707,-500.0,0.00012542,2]
[395237115,1764561031718,-374.67059508,0.00012542,2]
[395237116,1764561031731,-125.32940492,0.00012542,2]
[395237117,1764561031744,-500.0,0.00012543,2]
[395237118,1764561031755,-150.95342751,0.00012543,2]
[395237119,1764561031769,-349.04657249,0.00012543,2]
[395237120,1764561031780,-206.61551703,0.00012543,2]
[395237127,1764561031848,-293.38448297,0.00012543,2]
[395237128,1764561031859,-500.0,0.00012543,2]
[395237129,1764561031870,-500.0,0.00012543,2]
[395237130,1764561031881,-500.0,0.00012543,2]
[395237131,1764561031892,-500.0,0.00012543,2]
[395237132,1764561031902,-500.0,0.00012543,2]
[395237133,1764561031913,-135.61701662,0.00012543,2]
[395237135,1764561031926,-509.12918196,0.00012543,2]
[395237137,1764561031937,-500.0,0.00012543,2]
[395237139,1764561031948,-500.0,0.00012543,2]
[395237141,1764561031958,-500.0,0.00012543,2]
[395237144,1764561031968,-500.0,0.00012543,2]
[395237146,1764561031979,-500.0,0.00012543,2]
[395237148,1764561031989,-500.0,0.00012543,2]
[395237150,1764561031999,-500.0,0.00012543,2]
[395237152,1764561032009,-500.0,0.00012543,2]
[395237154,1764561032020,-500.0,0.00012543,2]
[395237156,1764561032031,-500.0,0.00012543,2]
[395237157,1764561032041,-500.0,0.00012543,2]
[395237158,1764561032051,-165.17571192,0.00012543,2]
[395237160,1764561032062,-500.0,0.00012543,2]
[395237163,1764561032072,-500.0,0.00012543,2]
[395237164,1764561032083,-500.0,0.00012543,2]
[395237165,1764561032094,-500.0,0.00012543,2]
[395237166,1764561032104,-500.0,0.00012543,2]
[395237167,1764561032115,-500.0,0.00012543,2]
[395237168,1764561032126,-156.3970819,0.00012543,2]
[395237169,1764561032136,-5992.0619293,0.00012544,2]
[395237170,1764561032154,-250.0,0.00012544,2]
[395237250,1764561037689,-1121.91703594,0.00012544,2]
[395237251,1764561037699,-1000.0,0.00012544,2]
[395237252,1764561037709,-602.46,0.00012574,2]
[395237253,1764561037719,-173.7989835,0.0001278,2]
[395237254,1764561037729,-200.0,0.00012805,2]
[395237255,1764561037738,-121.0659317,0.00012879,2]
[395237256,1764561037847,-41.86914261,0.00012879,2]
[395237257,1764561037857,-527.35410139,0.00012879,2]
[395237258,1764561037866,-209.35269556,0.00012879,2]
[395237259,1764561037876,-500.0,0.00012879,2]
[395237260,1764561037886,-2451.81451492,0.0001288,2]
[395237261,1764561037898,-7548.17548508,0.0001288,2]
[395237262,1764561037907,-999.99,0.0001288,2]
[395237263,1764561037917,-6443.95,0.0001288,2]
[395237264,1764561037927,-5968.48369976,0.0001288,2]
[395237265,1764561037938,-1946.56884356,0.0001288,2]
[395237266,1764561037949,-904.68617055,0.0001288,2]
[395237267,1764561037960,-1180.25128613,0.0001288,2]
[395237268,1764561037970,-299.99,0.0001288,2]
[395237269,1764561037979,-9999.99,0.0001288,2]
[395237270,1764561037988,-150.99,0.0001288,2]
[395237271,1764561037997,-43091.16,0.0001288,2]
[395237272,1764561038006,-904.6,0.0001288,2]
[395237274,1764561038016,-150.99,0.0001288,2]
[395237276,1764561038026,-1000.0,0.00013208,2]
[395237278,1764561038036,-2500.0,0.00013208,2]
[395237279,1764561038046,-200.0,0.000133,2]
[395237280,1764561038056,-500.0,0.000133,2]
[395237282,1764561038066,-500.0,0.000133,2]
[395237284,1764561038075,-500.0,0.000133,2]
[395237286,1764561038084,-500.0,0.000133,2]
[395237288,1764561038094,-500.0,0.000133,2]
[395237289,1764561038106,-500.0,0.000133,2]
[395237291,1764561038115,-500.0,0.000133,2]
[395237293,1764561038125,-500.0,0.000133,2]
[395237295,1764561038134,-200.0,0.000133,2]
[395237298,1764561038144,-500.0,0.000133,2]
[395237299,1764561038153,-500.0,0.000133,2]
[395237301,1764561038162,-500.0,0.000133,2]
[395237303,1764561038171,-500.0,0.000133,2]
[395237306,1764561038181,-500.0,0.000133,2]
[395237308,1764561038190,-500.0,0.000133,2]
[395237309,1764561038199,-500.0,0.000133,2]
[395237311,1764561038208,-500.0,0.000133,2]
[395237313,1764561038218,-500.0,0.000133,2]
[395237315,1764561038227,-500.0,0.000133,2]
[395237317,1764561038237,-500.0,0.000133,2]
[395237319,1764561038247,-500.0,0.000133,2]
[395237321,1764561038256,-500.0,0.000133,2]
[395237323,1764561038266,-500.0,0.000133,2]
[395237326,1764561038278,-500.0,0.000133,2]
[395237328,1764561038287,-500.0,0.000133,2]
[395237330,1764561038296,-500.0,0.000133,2]
[395237332,1764561038306,-500.0,0.000133,2]
[395237334,1764561038315,-200.0,0.000133,2]
[395237335,1764561038324,-151.0,0.000133,2]
[395237337,1764561038333,-151.0,0.000133,2]
[395237339,1764561038343,-151.0,0.000133,2]
[395237341,1764561038352,-151.0,0.000133,2]
[395237343,1764561038362,-151.0,0.000133,2]
[395237345,1764561038371,-151.0,0.000133,2]
[395237347,1764561038380,-151.0,0.000133,2]
[395237349,1764561038389,-151.0,0.000133,2]
[395237351,1764561038398,-151.0,0.000133,2]
[395237352,1764561038408,-151.0,0.000133,2]
[395237353,1764561038417,-151.0,0.000133,2]
[395237354,1764561038426,-151.0,0.000133,2]
[395237355,1764561038435,-151.0,0.000133,2]
[395237356,1764561038445,-151.0,0.000133,2]
[395237357,1764561038454,-151.0,0.000133,2]
[395237358,1764561038464,-151.0,0.000133,2]
[395237359,1764561038473,-151.0,0.000133,2]
[395237360,1764561038483,-500.0,0.000133,2]
[395237361,1764561038492,-151.0,0.000133,2]
[395237362,1764561038502,-151.0,0.000133,2]
[395237363,1764561038511,-151.0,0.000133,2]
[395237364,1764561038521,-151.0,0.000133,2]
[395237365,1764561038531,-151.0,0.000133,2]
[395237366,1764561038542,-151.0,0.000133,2]
[395237367,1764561038551,-151.0,0.000133,2]
[395237368,1764561038561,-151.0,0.000133,2]
[395237369,1764561038571,-151.0,0.000133,2]
[395237370,1764561038580,-151.0,0.000133,2]
[395237371,1764561038590,-151.0,0.000133,2]
[395237372,1764561038600,-151.0,0.000133,2]
[395237373,1764561038609,-151.0,0.000133,2]
[395237374,1764561038620,-151.0,0.000133,2]
[395237375,1764561038630,-151.0,0.000133,2]
[395237376,1764561038640,-151.0,0.000133,2]
[395237377,1764561038649,-197.72,0.000133,2]
[395237378,1764561038659,-282678.26116816,0.00013308,2]
[395237379,1764561038672,-442.0,0.00013333,2]
[395237380,1764561038681,-1871.0,0.00013402,2]
[395237381,1764561038691,-263.66083648,0.00013428,2]
[395237382,1764561038701,-522.0,0.00013544,2]
[395237383,1764561038712,-1431.0,0.00013571,2]
[395237384,1764561038722,-197.72,0.00013574,2]
[395237385,1764561038732,-1955.55,0.00013608,2]
[395237386,1764561038743,-255.0,0.00013632,2]
[395237387,1764561038754,-250.0,0.00013686,2]
[395237388,1764561038764,-547.41803348,0.00013698,2]
[395237389,1764561038774,-500.0,0.00013698,2]
[395237390,1764561038783,-500.0,0.00013698,2]
[395237391,1764561038793,-500.0,0.00013698,2]
[395237392,1764561038803,-500.0,0.00013698,2]
[395237393,1764561038812,-508.34597355,0.00013698,2]
[395237394,1764561038823,-500.0,0.00013698,2]
[395237395,1764561038833,-639.66251844,0.00013698,2]
[395237396,1764561038843,-500.0,0.00013698,2]
[395237397,1764561038853,-500.0,0.00013698,2]
[395237398,1764561038863,-500.0,0.00013698,2]
[395237399,1764561038873,-500.0,0.00013698,2]
[395237400,1764561038883,-500.0,0.00013698,2]
[395237401,1764561038893,-500.0,0.00013698,2]
[395237402,1764561038902,-500.0,0.00013698,2]
[395237403,1764561038912,-500.0,0.00013698,2]
[395237404,1764561038922,-500.0,0.00013698,2]
[395237405,1764561038931,-500.0,0.00013698,2]
[395237406,1764561038941,-500.0,0.00013698,2]
[395237407,1764561038951,-500.0,0.00013698,2]
[395237408,1764561038960,-500.0,0.00013698,2]
[395237409,1764561038970,-500.0,0.00013698,2]
[395237410,1764561038980,-500.0,0.00013698,2]
[395237411,1764561038989,-500.0,0.00013698,2]
[395237412,1764561038999,-269.91867043,0.00013698,2]
[395237413,1764561039009,-500.0,0.00013698,2]
[395237414,1764561039020,-500.0,0.00013698,2]
[395237415,1764561039034,-500.0,0.00013698,2]
[395237416,1764561039044,-500.0,0.00013698,2]
[395237417,1764561039054,-500.0,0.00013698,2]
[395237418,1764561039064,-500.0,0.00013698,2]
[395237419,1764561039075,-500.0,0.00013698,2]
[395237420,1764561039085,-500.0,0.00013698,2]
[395237421,1764561039095,-628.88445166,0.00013698,2]
[395237422,1764561039107,-500.0,0.00013698,2]
[395237423,1764561039116,-500.0,0.00013698,2]
[395237424,1764561039126,-212.41597807,0.00013699,2]
[395237425,1764561039136,-178.21832921,0.00013699,2]
[395237426,1764561039146,-420.0,0.00013759,2]
[395237427,1764561039154,-1680.0,0.00013794,2]
[395237428,1764561039163,-195.0,0.00013795,2]
[395237429,1764561039173,-300.0,0.00013795,2]
[395237430,1764561039182,-300.0,0.00013795,2]
[395237431,1764561039191,-300.0,0.00013795,2]
[395237432,1764561039201,-300.0,0.00013795,2]
[395237433,1764561039210,-300.0,0.00013795,2]
[395237434,1764561039219,-300.0,0.00013795,2]
[395237435,1764561039231,-300.0,0.00013795,2]
[395237436,1764561039241,-300.0,0.00013795,2]
[395237437,1764561039251,-300.0,0.00013795,2]
[395237438,1764561039260,-200.0,0.00013848,2]
[395237439,1764561039270,-541.75099719,0.00013848,2]
[395237440,1764561039281,-197.72,0.00013848,2]
[395237441,1764561039290,-500.0,0.00014172,2]
[395237442,1764561039299,-10954.66512739,0.00014356,2]
[395237443,1764561039308,-500.0,0.00014373,2]
[395237444,1764561039318,-500.0,0.00014373,2]
[395237445,1764561039327,-500.0,0.00014373,2]
[395237446,1764561039336,-500.0,0.00014373,2]
[395237447,1764561039345,-500.0,0.00014373,2]
[395237448,1764561039354,-500.0,0.00014373,2]
[395237449,1764561039363,-500.0,0.00014373,2]
[395237450,1764561039372,-500.0,0.00014373,2]
[395237451,1764561039382,-500.0,0.00014373,2]
[395237452,1764561039391,-339.8450961,0.00014396,2]
[395237453,1764561039401,-500.0,0.00014492,2]
[395237454,1764561039410,-500.0,0.00014492,2]
[395237455,1764561039419,-151.0,0.00014521,2]
[395237456,1764561039428,-2647.88780023,0.00014664,2]
[395237457,1764561039439,-2751.0,0.00014786,2]
[395237458,1764561039448,-433.0,0.00014823,2]
[395237459,1764561039458,-500.0,0.0001486,2]
[395237460,1764561039467,-500.0,0.0001486,2]
[395237461,1764561039476,-500.0,0.0001486,2]
[395237462,1764561039485,-500.0,0.0001486,2]
[395237463,1764561039495,-500.0,0.0001486,2]
[395237464,1764561039505,-500.0,0.0001486,2]
[395237465,1764561039516,-500.0,0.0001486,2]
[395237466,1764561039525,-500.0,0.0001486,2]
[395237467,1764561039534,-434.2840336,0.0001486,2]
[395237468,1764561039545,-15169.08968189,0.00014861,2]
[395237469,1764561039555,-600.0,0.00014861,2]
[395237470,1764561039565,-1000.0,0.00014921,2]
[395237471,1764561039574,-1000.0,0.00014921,2]
[395237472,1764561039583,-481.4168575,0.00014921,2]
[395237473,1764561039593,-1000.0,0.00014921,2]
[395237474,1764561039602,-1000.0,0.00014921,2]
[395237476,1764561039611,-1000.0,0.00014921,2]
[395237478,1764561039620,-1000.0,0.00014921,2]
[395237479,1764561039629,-500.0,0.00014999,2]
[395237480,1764561039639,-295.51445516,0.00015006,2]
[395237481,1764561039648,-322.63,0.00015068,2]
[395237482,1764561039657,-151.0,0.00015069,2]
[395237483,1764561039669,-587.0,0.00015096,2]
[395237484,1764561039679,-2351.0,0.00015173,2]
[395237485,1764561039688,-150.0,0.00015288,2]
[395237486,1764561039697,-153.94390537,0.00015288,2]
[395237487,1764561039708,-150.00000001,0.00015288,2]
[395237488,1764561039717,-150.0,0.00015288,2]
[395237489,1764561039727,-215.7735759,0.00015288,2]
[395237490,1764561039737,-227.44220096,0.00015288,2]
[395237491,1764561039747,-158.27867006,0.00015288,2]
[395237492,1764561039757,-150.0,0.00015288,2]
[395237493,1764561039767,-150.0,0.00015288,2]
[395237494,1764561039777,-150.0,0.00015288,2]
[395237495,1764561039787,-150.0,0.00015288,2]
[395237496,1764561039797,-150.0,0.00015288,2]
[395237497,1764561039807,-150.0,0.00015288,2]
[395237498,1764561039816,-200.0,0.00015288,2]
[395237499,1764561039826,-383.79559207,0.00015342,2]
[395237500,1764561039836,-600.0,0.00015409,2]
[395237501,1764561039846,-1500.0,0.00015468,2]
[395237502,1764561039855,-463.74871303,0.00015468,2]
[395237503,1764561039865,-458.41629171,0.00015468,2]
[395237504,1764561039874,-1002.96420978,0.00015468,2]
[395237505,1764561039883,-415.43921071,0.00015468,2]
[395237506,1764561039892,-500.0,0.00015488,2]
[395237507,1764561039903,-500.0,0.00015488,2]
[395237508,1764561039912,-297.78701479,0.00015617,2]
[395237509,1764561039921,-173.83022775,0.00015739,2]
[395237510,1764561039931,-150.0,0.00015817,2]
[395237511,1764561039941,-500.0,0.00015817,2]
[395237512,1764561039950,-150.0,0.00015817,2]
[395237513,1764561039959,-150.0,0.00015817,2]
[395237514,1764561039968,-150.0,0.00015954,2]
[395237515,1764561039977,-500.0,0.00015954,2]
[395237516,1764561039987,-150.0,0.00015954,2]
[395237517,1764561039996,-163.45254521,0.00015954,2]
[395237518,1764561040006,-600.0,0.00015957,2]
[395237519,1764561040016,-500.0,0.00015999,2]
[395237520,1764561040026,-2000.0,0.00016016,2]
[395237521,1764561040035,-207.4,0.00016039,2]
[395237522,1764561040044,-1018.06056546,0.00016049,4]
[395237523,1764561040053,-150.0,0.00016091,2]
[395237524,1764561040063,-504.66240196,0.00016091,2]
[395237525,1764561040072,-200.0,0.00016091,2]